Cogmind - Beta 13 @@@ ROGUE MODE // 2024.04.05 @ 20:33:55 Player: Cheeriohz Result: Destroyed by EX-H64(R) with Subdweller Machine Gun Performance ------------- Evolutions (0) 0 Regions Visited (2) 400 Robots Destroyed (32) 160 Value Destroyed (937) 937 Prototype IDs (0) 0 Alien Tech Used (0) 0 Bonus (0) 0 TOTAL SCORE: 1497 Bonus ------- None Cogmind --------- Core Integrity 0/250 Matter 265/300 Energy 78/100 System Corruption 2% Temperature Cool (0) Movement Rolling (110) Location -10/Subcaves Parts ------- > --- POWER (1) -------- (None) > --- PROPULSION (2) --- Subdweller Monowheel > --- UTILITY (2) ------ (None) > --- WEAPON (2) ------- Battle Cannon > --- INVENTORY (5) ---- Subdweller Monowheel Large Battery (200) Medium Laser Heavy Assault Rifle Maul Peak State ------------ > --- POWER ------------ Subdweller Power Source > --- PROPULSION ------- Subdweller Monowheel Subdweller Monowheel > --- UTILITY ---------- Scrap Shield > --- WEAPON ----------- Battle Cannon Battle Cannon > --- INVENTORY -------- Subdweller Monowheel Large Battery Medium Laser Heavy Assault Rifle Maul [Rating: 14] Favorites ----------- Power Ion Engine Engine Ion Engine Propulsion Subdweller Monowheel Leg Aluminum Leg Wheel Subdweller Monowheel Utility Propulsion Shielding Device Subdweller Optics Storage High-capacity Storage Unit Protection Propulsion Shielding Weapon Light Cannon Energy Gun Small Laser Ballistic Gun Subdweller Machine Gun Ballistic Cannon Light Cannon Build | -11 -10 -10 ------- Run | Yrd Mat Sub Slots Evolved . | . . . Power . | . . . Propulsion . | . . . Utility . | . . . Weapon . | . . . Parts Attached 26 | . 17 9 Power 5 | . 4 1 Engine 5 | . 4 1 Core . | . . . Reactor . | . . . Propulsion 6 | . 5 1 Treads . | . . . Leg . | . . . Wheel 6 | . 5 1 Hover . | . . . Flight . | . . . Utility 7 | . 3 4 Device 1 | . . 1 Storage 2 | . 2 . Processor . | . . . Hackware . | . . . Protection 4 | . 1 3 Artifact . | . . . Weapon 8 | . 5 3 Energy Gun 1 | . 1 . Energy Cannon . | . . . Ballistic Gun 3 | . 3 . Ballistic Cannon 4 | . 1 3 Launcher . | . . . Special Weapon . | . . . Impact Weapon . | . . . Slashing Weapon . | . . . Piercing Weapon . | . . . Special Melee Weapon . | . . . Unidentified Prototypes . | . . . Parts Lost 5 | . . 5 Power 1 | . . 1 Propulsion 1 | . . 1 Utility 1 | . . 1 Weapon 2 | . . 2 Highest Loss Streak 4 | . . 4 To Critical Strikes . | . . . Average Slot Usage (%) 94 | . 99 88 Engine 13 | . 14 13 Wheel 27 | . 27 28 Storage 9 | . 14 3 Protection 13 | . 13 13 Ballistic Gun 8 | . 14 2 Ballistic Cannon 18 | . 12 25 Naked Turns . | . . . Heaviest Build 53 | 11 53 53 Greatest Support 40 | 20 40 40 Greatest Overweight (x) 2 | . 2 2 Average Overweight (x) . | . . . Largest Inventory Capacity 20 | 8 20 20 Average Capacity 14 | 8 19 8 Most Carried 20 | 6 20 20 Average Carried 12 | 6 16 8 Final Capacity 20 | 8 20 5 Final Carried 20 | 6 20 5 Class Distribution -------------------- 35% | Subdweller-Mutant 34% | Mutant 29% | Scavenger-Mutant Dominant Class ---------------- Mutant | -10/Materials Subdweller-Mutant | -10/Subcaves Resources | -11 -10 -10 ----------- Run | Yrd Mat Sub Matter Collected 1246 | 200 446 600 Remotely . | . . . Salvage Created 786 | . 540 246 Parts 66 | . 39 27 Haulers Intercepted 1 | . 1 . Recyclers Shooed 1 | . 1 . Parts Field Recycled . | . . . Retrieved Matter . | . . . Parts Self-Destructed 11 | . . 11 Prevented . | . . . Kills | -11 -10 -10 ------- Run | Yrd Mat Sub Combat Hostiles Destroyed 29 | . 17 12 Guns 12 | . 11 1 Cannons 17 | . 6 11 Classes Destroyed 6 | . 4 2 Hauler 1 | . 1 . Watcher 2 | . 2 . Swarmer 7 | . 6 1 Grunt 13 | . 11 2 Sentry 1 | . . 1 Subdweller 8 | . . 8 Best Kill Streak 5 | . 5 4 Combat Bots Only 5 | . 5 4 Max Kills in Single Turn 1 | . 1 1 Gunslinging . | . . . Exploded . | . . . Melee . | . . . Uniques/NPCs Destroyed . | . . . Combat | -11 -10 -10 -------- Run | Yrd Mat Sub Hostile Shots Fired 138 | . 69 69 Missed 44 | . 23 21 Damage Taken 1562 | . 491 1071 Core 265 | . 93 172 Absorbed by Shields . | . . . Redirected to Shielding 21 | . 21 . Regen/Repaired (Parts) 2 | . 2 . Core Remaining (%) 100 | 100 . . Volleys Fired 133 | . 69 64 Largest 2 | . 2 2 Hottest 78 | . 65 78 Shots Fired 259 | . 134 125 Gun 102 | . 92 10 Cannon 157 | . 42 115 Launcher . | . . . Special . | . . . Kinetic 236 | . 111 125 Thermal 23 | . 23 . Explosive . | . . . Electromagnetic . | . . . Robot Hit Streak 13 | . 11 13 Robot Miss Streak 4 | . 4 3 Penetration Max . | . . . Secondary Targets . | . . . Shots Hit Robots 159 | . 83 76 Core Hits 48 | . 28 20 Critical Kills . | . . . Critical Parts Destroyed . | . . . Critical Strikes 6 | . 1 5 Blast 6 | . 1 5 Melee Attacks . | . . . Impact . | . . . Slashing . | . . . Piercing . | . . . Sneak Attacks . | . . . Combat Hostiles . | . . . Follow-up Attacks . | . . . Damage Inflicted 2410 | . 1037 1373 Guns 683 | . 619 64 Cannons 1718 | . 409 1309 Explosions . | . . . Melee . | . . . Ramming 9 | . 9 . Kinetic 2236 | . 863 1373 Thermal 165 | . 165 . Explosive . | . . . Electromagnetic . | . . . Impact . | . . . Slashing . | . . . Piercing . | . . . Highest Corruption 2 | . 2 2 Average Corruption 2 | . 2 2 Corruption Purged . | . . . Corruption Blocked . | . . . Effects 20 | . 6 14 Message Errors 10 | . 3 7 Matter Fused 2 | . 1 1 Heat Flow Errors 1 | . 1 . Energy Discharges 4 | . 1 3 Data Loss (minor) 2 | . . 2 Weapon Failures 1 | . . 1 Overload Shots . | . . . Overflow Damage 10 | . 10 . Projectiles 10 | . 10 . Explosions . | . . . Melee . | . . . Knockbacks 8 | . 4 4 Impact 1 | . 1 . Kinetic 7 | . 3 4 Secondary . | . . . Self-Inflicted Damage 4 | . 4 . Shots . | . . . Rammed 1 | . 1 . Targets Rammed 1 | . 1 . Kicked . | . . . Crushed . | . . . Highest Temperature 208 | . 208 . Average Temperature 47 | . 47 . Received Heat Transfer 381 | . 219 162 Siege Activations . | . . . Robots Corrupted . | . . . Combat Hostiles . | . . . Parts Fried . | . . . Impact Corruptions . | . . . Robots Melted . | . . . Combat Hostiles . | . . . Parts Melted 1 | . 1 . Heat Transferred 375 | . 375 . Parts Sabotaged . | . . . Parts Stolen . | . . . Parts Stripped . | . . . Power Chain Reactions . | . . . Alert | -11 -10 -10 ------- Run | Yrd Mat Sub Peak Influence 214 | . 214 . Initial . | . . . Average 89 | . 89 . Maximum Alert Level 1 | . 1 . Low Security (%) 96 | 100 96 . Level 1 3 | . 3 . Level 2 . | . . . Level 3 . | . . . Level 4 . | . . . Level 5 . | . . . High Security . | . . . Max Security . | . . . Squads Dispatched 4 | . 4 . Investigation 4 | . 4 . Extermination . | . . . Reinforcement . | . . . Assault . | . . . Garrison . | . . . Intercept . | . . . Searches Triggered . | . . . Construction Impeded . | . . . Haulers Reinforced . | . . . Active Scanning Responses . | . . . Cargo Convoy Interrupts . | . . . Stealth | -11 -10 -10 --------- Run | Yrd Mat Sub Distress Signals 3 | . 3 . Communications Jammed . | . . . Distress Signals . | . . . Times Spotted 36 | . 22 14 Peak Tracking Total 5 | . 5 2 Tactical Retreats . | . . . Traps | -11 -10 -10 ------- Run | Yrd Mat Sub Traps Triggered 4 | . 3 1 Indirectly . | . . . Trap Hack Attempts . | . . . Triggered . | . . . Disarmed . | . . . Reprogrammed . | . . . Reused . | . . . Traps Extracted . | . . . Installed . | . . . Triggered . | . . . Machines | -11 -10 -10 ---------- Run | Yrd Mat Sub Machines Disabled . | . . . Max in Single Turn . | . . . Machines Repaired . | . . . Machines Dismantled . | . . . Machines Sabotaged . | . . . Overloaded Fab Kills . | . . . Hacking | -11 -10 -10 --------- Run | Yrd Mat Sub Machines Accessed 8 | . 8 . Terminals 7 | . 7 . Fabricators . | . . . Repair Stations 1 | . 1 . Recycling Units . | . . . Scanalyzers . | . . . Garrison Access . | . . . Total Hacks 25 | . 25 . Successful 9 | . 9 . Failed 15 | . 15 . Catastrophic 2 | . 2 . Database Lockouts 1 | . 1 . Manual 23 | . 23 . Terminals 23 | . 23 . Fabricators . | . . . Repair Stations 2 | . 2 . Recycling Units . | . . . Scanalyzers . | . . . Garrison Access . | . . . Terminal Hacks 3 | . 3 . Robot Analysis 2 | . 2 . Branch Access Points 1 | . 1 . Fabricator Hacks . | . . . Repair Station Hacks 2 | . 2 . Scan Component 1 | . 1 . Repair 1 | . 1 . Recycling Unit Hacks . | . . . Scanalyzer . | . . . Garrison Access Hacks . | . . . Unauthorized Hacks 4 | . 4 . Terminals 4 | . 4 . Botnet 4 | . 4 . Fabricators . | . . . Repair Stations . | . . . Recycling Units . | . . . Scanalyzers . | . . . Garrison Access . | . . . Data Cores Recovered . | . . . Used . | . . . Hacking Detections 7 | . 7 . Full Trace Events 1 | . 1 . Feedback Events . | . . . Feedback Blocked . | . . . Robot Schematics Acquired . | . . . Robots Built . | . . . Authchips . | . . . Time . | . . . Total Robot Build Rating . | . . . Part Schematics Acquired . | . . . Parts Built . | . . . Authchips . | . . . Time . | . . . Total Part Build Rating . | . . . Parts Repaired 1 | . 1 . Time 44 | . 44 . Parts Recycled . | . . . Recycled Matter . | . . . Retrieved Matter . | . . . Retrieved Components . | . . . Parts Scanalyzed . | . . . Part Schematics Acquired . | . . . Parts Damaged . | . . . Bothacking | -11 -10 -10 ------------ Run | Yrd Mat Sub Used RIF Installer . | . . . Robots Hacked . | . . . Non-combat . | . . . Combat . | . . . Robot Hacks Applied . | . . . Relay Couplers Released . | . . . Fabnet Peak Effective % . | . . . Robots Rewired . | . . . Allies Hacked . | . . . Hacks Repelled . | . . . Allies | -11 -10 -10 -------- Run | Yrd Mat Sub Total Allies . | . . . Largest Group . | . . . Highest-Rated Group . | . . . Highest-Rated Ally . | . . . Total Orders . | . . . Ally Attacks . | . . . Total Damage . | . . . Kills . | . . . Allies Corrupted . | . . . Allies Melted . | . . . Intel | -11 -10 -10 ------- Run | Yrd Mat Sub Robot Analysis Total 2 | . 2 . Derelict Logs Recovered . | . . . Drone Launches . | . . . Drone Recoveries . | . . . Exploration | -11 -10 -10 ------------- Run | Yrd Mat Sub Turns Passed 2728 | 4 1458 1266 Spaces Moved 1788 | 4 897 887 Core . | . . . Treads . | . . . Legs 23 | 4 19 . Wheels 1765 | . 878 887 Hover . | . . . Flight . | . . . Fastest Speed 90 | 120 90 110 Average Speed 112 | 120 112 112 Slowest Speed 190 | 120 190 130 Overloaded Moves . | . . . Propulsion Burnouts . | . . . Robots Hopped . | . . . Cave-ins Triggered . | . . . Exploration Rate (%) 48 | 2 97 45 Regions Visited 2 Branch Regions 1 Pre-discovered Areas 1 | . . 1 Known Exits Taken . | . . . Unknown Exits Taken 2 | 1 1 . Scrap Searched 6 | . . 6 Spaces Dug . | . . . Terrain Destroyed . | . . . Melee . | . . . Projectile . | . . . AOE . | . . . Terrain Rammed . | . . . Walls Destroyed . | . . . Machines Disabled . | . . . Actions | -11 -10 -10 --------- Run | Yrd Mat Sub Total 2256 | 3 1224 1029 Wait 255 | . 210 45 Move 1786 | 3 896 887 Hop . | . . . Pick Up 18 | . 14 4 Fast Attach 13 | . 7 6 Attach 1 | . . 1 Detach 4 | . 4 . Swap 12 | . 10 2 Drop 24 | . 13 11 Fire 133 | . 69 64 Melee . | . . . Ram 1 | . 1 . Kick . | . . . Crush . | . . . Escape Stasis . | . . . Rewire . | . . . Trap . | . . . Miscellaneous 9 | . . 9 Route ------- -11/Scrapyard -10/Materials (discovered 6 exits: [*Mat x3] / *Min x2 / [*Sub]) -10/Subcaves (discovered 2 exits: [*Mat x2]) History --------- Turn | Location | Event 1 | -11/Scrapyard | Discovered new exit (range 1) 5 | -11/Scrapyard | Entered Materials 235 | -10/Materials | Discovered new exit (range 7) 317 | -10/Materials | Build established: Mutant 439 | -10/Materials | Discovered new exit (range 10) 463 | -10/Materials | Identified exit to Mines 600 | -10/Materials | Derelicts attacked the area 644 | -10/Materials | Discovered new exit (range 15) 1029 | -10/Materials | Discovered new exit (range 9) 1105 | -10/Materials | Repaired Broken Sub. Monowheel 1230 | -10/Materials | Central database locked down 1413 | -10/Materials | Build established: Scavenger-Mutant 1453 | -10/Materials | Discovered new exit (range 9) 1463 | -10/Materials | Entered Subcaves 1493 | -10/Subcaves | Learned location of Zion (-7) 1493 | -10/Subcaves | Met a Zionite searching for "candidates" 1593 | -10/Subcaves | Core integrity fell below 50% 1633 | -10/Subcaves | Disturbed a concealed Subdweller 1879 | -10/Subcaves | Discovered new exit (range 7) 1962 | -10/Subcaves | A swath of the cavern ceiling suddenly collapsed 2053 | -10/Subcaves | Build established: Subdweller-Mutant 2292 | -10/Subcaves | Core integrity fell below 20% 2429 | -10/Subcaves | Shifting Twisted Machinery released Piercing Trap 2438 | -10/Subcaves | Shifting Twisted Machinery released Sub. Monowheel 2448 | -10/Subcaves | Discovered new exit (range 13) 2729 | -10/Subcaves | Destroyed by EX-H64(R) with Subdweller Machine Gun Last Messages --------------- 02627_ Acquired 37 matter. 02628_ Lgt. Treads fries itself beyond repair. 02628_ Acquired 29 matter. 02629_ Acquired 9 matter. 02630_ Heat Sink fries itself beyond repair. 02630_ Acquired 1 matter. 02632_ Lgt. Assault Rifle fries itself beyond repair. 02632_ Lgt. Armor Plating fries itself beyond repair. 02633_ Acquired 2 matter. 02673_ Scrap Shield Fragment affixed to Scrap Shield (+40). 02680_ Triggered Piercing Trap. 02680_ Spikes shoot up from the floor. 02680_ Critical hit (Impale). 02712_ KZ-PGY(R) knocked back. 02713_ Broken Sub. Power Source destroyed. 02718_ KZ-PGY(R) knocked back. 02721_ Sub. Monowheel destroyed. 02723_ Scrap Shield destroyed. 02725_ System corrupted: Energy discharge (-38). 02725_ Battle Cannon destroyed. Map ----- +----------------------------------------------------+ | ?????????????????????????????????????????????????? | | ?????????????????????????????????????????????????? | | ?????????????????????????????????????????????????? | | ?????????????????????????????????????????????????? | | ?????????????????????????????????????????????????? | | ?????????????????????????????????????????????????? | | ?????????????????????????????????????????????????? | | ?????????????????????????????????????????????????? | | ?????????????????????????????????????????????????? | | ?????????????????????????????????????????????????? | | ?????????????????????????????????????????????????? | | ?????????????????????????????????????????????????? | | ?????????????????????????????????????????????????? | | ?????????????????????????????????????????????????? | | ?????????????????????????????????????????????????? | | ?????????????????????????????????????????????????? | | ?????????????????????????????????????????????????? | | ?????????????????????????????????????????????????? | | ?????????????????????????????????#???????????????? | | ???????????????????????????????? #???????????????? | | ????????????????#?????????????? #????????????????? | | ???????????????## #######????? ##???????????????? | | ???????????????# ##??? #???????????????? | | ?????????????????# ### #????????????????? | | ????????????????????# %%% #?????????????????? | | #####???????????????# @ R #?????????????????? | | ## ##?????????????## ## R% #?????????????????? | | " ^############?## ##???% #????????????????? | | # " # # # ### #?????? ??????????????? | | #^" #???????? ???????????? | | ## #?????????? ??????????? | | ?## # ###### # #####???????????? ??????????? | | ??######????#########????????????????????????????? | | ?????????????????????????????????????????????????? | | ?????????????????????????????????????????????????? | | ?????????????????????????????????????????????????? | | ?????????????????????????????????????????????????? | | ?????????????????????????????????????????????????? | | ?????????????????????????????????????????????????? | | ?????????????????????????????????????????????????? | | ?????????????????????????????????????????????????? | | ?????????????????????????????????????????????????? | | ?????????????????????????????????????????????????? | | ?????????????????????????????????????????????????? | | ?????????????????????????????????????????????????? | | ?????????????????????????????????????????????????? | | ?????????????????????????????????????????????????? | | | | | | | +----------------------------------------------------+ Best States ------------- Heat Dissipation 25 Energy Generation 15 Energy Capacity 250 Matter Stores 300 Matter Capacity 300 Sight Range 16 Terrain Scan Density 10 Armor Coverage 800 Propulsion Shielding 33 Evasion (%) 45 Item Schematics ----------------- None Robot Schematics ------------------ None Fabricated ------------ Nothing Alien Tech Used ----------------- None Achievements -------------- None Challenges ------------ None Game ------ Seed PrecisionThermalMultirail Manual? 0 Play Time 00:23:35 Cumulative 98.1 hours Start 2024.04.05 @ 20:09:32 End 2024.04.05 @ 20:33:55 Sessions 1 Manual Loads 0 Difficulty Rogue Special Mode None Game No. 94 Rogue 94 Adventurer 0 Explorer 0 Win Type - Total 3 Types 2/0/0/1/0/0/0/0/0 Lore% 43 Gallery% 63 Achievement% 48 Wizard Run 0 Options --------- Layout 1 ASCII 0 Keyboard 1 Movement Numpad Keybinds 0 Fullscreen 1 Font 32/SmallcapsGlow Map View 77x35 Zoom Use 0% Tactical HUD 1 Map Filters NONE Filters NONE Steam 1 RUN: d6720f8a-be96-4842-848c-b5bd5a0f4d76